{"text_format":"3","workbook":"xlsx","n_sheets":1,"sheets":["Teklif"],"not_rendered":{"images":1,"defined_names":20},"read":"whole","date_system":"1900"}

{"sheet":"Teklif","index":0,"n_rows":39,"n_cols":7,"rows_kept":39,"merged":[[0,1,3,1],[0,3,0,6],[1,4,1,6],[2,4,2,6],[32,3,35,4],[36,3,36,6],[37,3,37,5],[38,3,38,5]]}
[{"$nulls":3},"İNŞAAT TEKLİFİ"]
[{"$nulls":3},"Şirket Adı","| Bu hücreye şirketin açık adresini girin"]
[{"$nulls":3},"Telefon","| Bu hücreye şirketin faks numarasını ve iletişim e-posta adresini girin"]
[{"$nulls":3},"MİKTAR","AÇIKLAMA","BİRİM FİYATI","TUTAR"]
[null,"MÜŞTERİ",null,10,"Öğe 1",{"v":165,"d":"165.00 ₺"},{"$f":"IFERROR(SatırÖğeleri[[#This Row],[MİKTAR]]*SatırÖğeleri[[#This Row],[BİRİM FİYATI]], \"\")","v":{"v":1650,"d":"1,650.00 ₺"}}]
[null,"Bu hücreye Müşterinin adını girin",null,21,"Öğe 2",{"v":40,"d":"40.00 ₺"},{"$f":"IFERROR(SatırÖğeleri[[#This Row],[MİKTAR]]*SatırÖğeleri[[#This Row],[BİRİM FİYATI]], \"\")","v":{"v":840,"d":"840.00 ₺"}}]
[null,"TAHMİN NUMARASI",null,5,"Öğe 3",{"v":10.5,"d":"10.50 ₺"},{"$f":"IFERROR(SatırÖğeleri[[#This Row],[MİKTAR]]*SatırÖğeleri[[#This Row],[BİRİM FİYATI]], \"\")","v":{"v":52.5,"d":"52.50 ₺"}}]
[null,"C-1234",null,164,"Öğe 4",{"v":2.75,"d":"2.75 ₺"},{"$f":"IFERROR(SatırÖğeleri[[#This Row],[MİKTAR]]*SatırÖğeleri[[#This Row],[BİRİM FİYATI]], \"\")","v":{"v":451,"d":"451.00 ₺"}}]
[null,"TARİH",null,6,"Öğe 5",{"v":12,"d":"12.00 ₺"},{"$f":"IFERROR(SatırÖğeleri[[#This Row],[MİKTAR]]*SatırÖğeleri[[#This Row],[BİRİM FİYATI]], \"\")","v":{"v":72,"d":"72.00 ₺"}}]
[null,{"$f":"TODAY()","v":"2018-11-15"},null,18,"Öğe 6",{"v":5.5,"d":"5.50 ₺"},{"$f":"IFERROR(SatırÖğeleri[[#This Row],[MİKTAR]]*SatırÖğeleri[[#This Row],[BİRİM FİYATI]], \"\")","v":{"v":99,"d":"99.00 ₺"}}]
[null,"ADRES",null,1,"Öğe 7",{"v":25,"d":"25.00 ₺"},{"$f":"IFERROR(SatırÖğeleri[[#This Row],[MİKTAR]]*SatırÖğeleri[[#This Row],[BİRİM FİYATI]], \"\")","v":{"v":25,"d":"25.00 ₺"}}]
[null,"Bu hücreye Müşterinin açık adresini girin",{"$nulls":4},{"$f":"IFERROR(SatırÖğeleri[[#This Row],[MİKTAR]]*SatırÖğeleri[[#This Row],[BİRİM FİYATI]], \"\")","v":{"v":0,"d":"0.00 ₺"}}]
[null,"İLÇE/İL/POSTA KODU",{"$nulls":4},{"$f":"IFERROR(SatırÖğeleri[[#This Row],[MİKTAR]]*SatırÖğeleri[[#This Row],[BİRİM FİYATI]], \"\")","v":{"v":0,"d":"0.00 ₺"}}]
[null,"Bu hücreye Müşterinin İlçe, İl ve Posta Kodunu girin",{"$nulls":4},{"$f":"IFERROR(SatırÖğeleri[[#This Row],[MİKTAR]]*SatırÖğeleri[[#This Row],[BİRİM FİYATI]], \"\")","v":{"v":0,"d":"0.00 ₺"}}]
[null,"TELEFON",{"$nulls":4},{"$f":"IFERROR(SatırÖğeleri[[#This Row],[MİKTAR]]*SatırÖğeleri[[#This Row],[BİRİM FİYATI]], \"\")","v":{"v":0,"d":"0.00 ₺"}}]
[null,"Bu hücreye Müşterinin telefon numarasını girin",{"$nulls":4},{"$f":"IFERROR(SatırÖğeleri[[#This Row],[MİKTAR]]*SatırÖğeleri[[#This Row],[BİRİM FİYATI]], \"\")","v":{"v":0,"d":"0.00 ₺"}}]
[null,"E-POSTA",{"$nulls":4},{"$f":"IFERROR(SatırÖğeleri[[#This Row],[MİKTAR]]*SatırÖğeleri[[#This Row],[BİRİM FİYATI]], \"\")","v":{"v":0,"d":"0.00 ₺"}}]
[null,"Bu hücreye Müşterinin E-posta adresini girin",{"$nulls":4},{"$f":"IFERROR(SatırÖğeleri[[#This Row],[MİKTAR]]*SatırÖğeleri[[#This Row],[BİRİM FİYATI]], \"\")","v":{"v":0,"d":"0.00 ₺"}}]
[null,"SATIŞ TEMSİLCİSİ",{"$nulls":4},{"$f":"IFERROR(SatırÖğeleri[[#This Row],[MİKTAR]]*SatırÖğeleri[[#This Row],[BİRİM FİYATI]], \"\")","v":{"v":0,"d":"0.00 ₺"}}]
[null,"Bu hücreye Satış Temsilcisini girin",{"$nulls":4},{"$f":"IFERROR(SatırÖğeleri[[#This Row],[MİKTAR]]*SatırÖğeleri[[#This Row],[BİRİM FİYATI]], \"\")","v":{"v":0,"d":"0.00 ₺"}}]
[null,"PROJE",{"$nulls":4},{"$f":"IFERROR(SatırÖğeleri[[#This Row],[MİKTAR]]*SatırÖğeleri[[#This Row],[BİRİM FİYATI]], \"\")","v":{"v":0,"d":"0.00 ₺"}}]
[null,"Bu hücreye Proje adını girin",{"$nulls":4},{"$f":"IFERROR(SatırÖğeleri[[#This Row],[MİKTAR]]*SatırÖğeleri[[#This Row],[BİRİM FİYATI]], \"\")","v":{"v":0,"d":"0.00 ₺"}}]
[null,"HAZIRLAYAN:",{"$nulls":4},{"$f":"IFERROR(SatırÖğeleri[[#This Row],[MİKTAR]]*SatırÖğeleri[[#This Row],[BİRİM FİYATI]], \"\")","v":{"v":0,"d":"0.00 ₺"}}]
[null,"Bu hücreye Hazırlayanın adını girin",{"$nulls":4},{"$f":"IFERROR(SatırÖğeleri[[#This Row],[MİKTAR]]*SatırÖğeleri[[#This Row],[BİRİM FİYATI]], \"\")","v":{"v":0,"d":"0.00 ₺"}}]
[null,"DİKKAT",{"$nulls":4},{"$f":"IFERROR(SatırÖğeleri[[#This Row],[MİKTAR]]*SatırÖğeleri[[#This Row],[BİRİM FİYATI]], \"\")","v":{"v":0,"d":"0.00 ₺"}}]
[null,"Bu hücreye teklifin yönlendirileceği kişinin adını girin",{"$nulls":4},{"$f":"IFERROR(SatırÖğeleri[[#This Row],[MİKTAR]]*SatırÖğeleri[[#This Row],[BİRİM FİYATI]], \"\")","v":{"v":0,"d":"0.00 ₺"}}]
[null,"ÖDEME KOŞULLARI",{"$nulls":4},{"$f":"IFERROR(SatırÖğeleri[[#This Row],[MİKTAR]]*SatırÖğeleri[[#This Row],[BİRİM FİYATI]], \"\")","v":{"v":0,"d":"0.00 ₺"}}]
[null,"30 gün vadeli",{"$nulls":4},{"$f":"IFERROR(SatırÖğeleri[[#This Row],[MİKTAR]]*SatırÖğeleri[[#This Row],[BİRİM FİYATI]], \"\")","v":{"v":0,"d":"0.00 ₺"}}]
[null,"BİTİŞ TARİHİ",{"$nulls":4},{"$f":"IFERROR(SatırÖğeleri[[#This Row],[MİKTAR]]*SatırÖğeleri[[#This Row],[BİRİM FİYATI]], \"\")","v":{"v":0,"d":"0.00 ₺"}}]
[null,{"$f":"TODAY()+30","v":"2018-12-15"},{"$nulls":4},{"$f":"IFERROR(SatırÖğeleri[[#This Row],[MİKTAR]]*SatırÖğeleri[[#This Row],[BİRİM FİYATI]], \"\")","v":{"v":0,"d":"0.00 ₺"}}]
[{"$nulls":5},"ARA TOPLAM",{"$f":"SUBTOTAL(109,SatırÖğeleri[TUTAR])","v":{"v":3189.5,"d":"3,189.50 ₺"}}]
[{"$nulls":3},"BU TEKLİF BELİRTİLEN KOŞULLARI İÇERİR:",null,"VERGİ ORANI ",{"v":0.0775,"d":"7.75%"}]
[{"$nulls":3},"Buraya koşulları girin",null,"SATIŞ VERGİSİ ",{"$f":"IFERROR(AraToplam*VergiOranı, \"\")","v":{"v":247.18625,"d":"247.19 ₺"}}]
[{"$nulls":5},"DİĞER "]
[{"$nulls":5},"TOPLAM ",{"$f":"IFERROR(AraToplam+G33+Diğer, \"\")","v":{"v":3436.68625,"d":"3,436.69 ₺"}}]
[]
[{"$nulls":3},"Teklifi Kabul Etmek için Aşağıyı İmzalayın:"]
[]
[{"$nulls":3},"Yetkili Temsilci",null,null,"Tarih"]